fUSD/lending_fUSD_20251228
["ID","MTS","AMOUNT","RATE_DAILY","PERIOD"]
[399946336,1766921441619,-500.0,0.00016973,2]
[399946337,1766921441628,-500.0,0.00016973,2]
[399946338,1766921441638,-500.0,0.00016973,2]
[399946339,1766921441648,-500.0,0.00016973,2]
[399946340,1766921441657,-500.0,0.00016973,2]
[399946341,1766921441667,-150.0,0.00016973,2]
[399946342,1766921441676,-172.0,0.00016981,2]
[399946343,1766921441685,-505.85873594,0.00016983,2]
[399946344,1766921441695,-151.87453226,0.00016983,2]
[399946345,1766921441706,-282258.7316294,0.00016997,2]
[399946346,1766921441716,-2318.9071757,0.00016997,2]
[399946347,1766921441731,-63078.3933923,0.00016997,2]
[399946348,1766921441740,-221.52529679,0.00016999,5]
[399946349,1766921441751,-1117.45821686,0.00016999,5]
[399946350,1766921441761,-2996043.9158419,0.00017,2]
[399946351,1766921441781,-22989.30025605,0.00017,2]
[399946352,1766921441795,-450.43665201,0.00017,2]
[399946353,1766921441807,-4138.7968325,0.00017,2]
[399946354,1766921441821,-13851.02829593,0.00017,2]
[399946355,1766921441833,-1123.11407477,0.00017,2]
[399946356,1766921441845,-843.615009,0.00017,2]
[399946360,1766921444126,-500.00000001,0.00016015,2]
[399946361,1766921444138,-500.0,0.00016015,2]
[399946362,1766921444147,-151.0,0.00016092,2]
[399946363,1766921444156,-38533.8963959,0.00017,2]
[399946364,1766921444170,-143606.49566121,0.00017,2]
[399946365,1766921444747,-465.28,0.000166,2]
[399946366,1766921444756,-443.531586,0.00017,2]
[399946367,1766921444803,-6855.90067227,0.00017,2]
[399946389,1766921446404,-910.03376038,0.00017,2]
[399946390,1766921446513,-22018.36395871,0.00017,2]
[399946438,1766921619165,723.14,0.00013699,2]
[399946496,1766922631442,-166.66,0.00014862,2]
[399946497,1766922631452,-166.66,0.00015175,2]
[399946498,1766922631461,-173.69,0.00015264,2]
[399946499,1766922631471,-166.66,0.00015488,2]
[399946500,1766922631480,-150.0,0.00015646,2]
[399946501,1766922631490,-655.18,0.000157,2]
[399946502,1766922631498,-94.93266955,0.00015801,2]
[399946503,1766922631603,-71.72733045,0.00015801,2]
[399946505,1766922631612,-150.0,0.00015903,2]
[399946507,1766922631623,-300.0,0.00015915,2]
[399946509,1766922631633,-1200.0,0.00015915,2]
[399946510,1766922631643,-300.0,0.00015915,2]
[399946511,1766922631653,-19553.64133281,0.00015916,2]
[399946538,1766922637557,-335.00823583,0.00015915,2]
[399946554,1766922639500,-75.01049547,0.00015915,2]
[399946555,1766922639511,-286.46830847,0.00015915,2]
[399946556,1766922639521,-500.0,0.00015915,2]
[399946557,1766922639531,-500.0,0.00015915,2]
[399946558,1766922639540,-500.0,0.00015915,2]
[399946559,1766922639550,-500.0,0.00015915,2]
[399946560,1766922639559,-484.37587152,0.00015915,2]
[399946561,1766922639568,-500.0,0.00015915,2]
[399946562,1766922639578,-12609.61938112,0.00015916,2]
[399946563,1766922639817,-967836.73928607,0.00015916,2]
[399946564,1766922639827,-2999.55937043,0.00015928,2]
[399946565,1766922639839,-172.9319068,0.00015928,2]
[399946566,1766922639849,-151.12490865,0.00015928,2]
[399946567,1766922639859,-500.0,0.00016007,2]
[399946568,1766922639869,-500.0,0.00016007,2]
[399946569,1766922639879,-151.0,0.00016007,2]
[399946570,1766922639888,-151.0,0.00016007,2]
[399946571,1766922639898,-151.0,0.00016007,2]
[399946572,1766922639907,-186.605,0.00016015,2]
[399946573,1766922639919,-1453.15,0.00016015,2]
[399946575,1766922639928,-1000.0,0.00016028,2]
[399946577,1766922639938,-2999.55937036,0.00016036,2]
[399946579,1766922639948,-151.0,0.00016055,2]
[399946581,1766922639957,-151.0,0.00016055,2]
[399946583,1766922639967,-151.0,0.00016058,2]
[399946585,1766922639977,-151.0,0.00016058,2]
[399946587,1766922639986,-465.28,0.00016078,2]
[399946589,1766922639995,-465.28,0.00016078,2]
[399946591,1766922640004,-465.28,0.00016078,2]
[399946592,1766922640014,-166.66,0.00016114,2]
[399946593,1766922640023,-172.93190675,0.00016122,2]
[399946594,1766922640033,-2999.55937036,0.00016144,2]
[399946595,1766922640043,-500.0,0.00016148,2]
[399946596,1766922640052,-9211.34798985,0.00016148,2]
[399946597,1766922640062,-500.0,0.00016148,2]
[399946598,1766922640072,-500.0,0.00016148,2]
[399946599,1766922640081,-153.47713146,0.00016148,2]
[399946601,1766922640090,-553.64373807,0.00016148,2]
[399946602,1766922640099,-500.0,0.00016148,2]
[399946603,1766922640108,-500.0,0.00016148,2]
[399946604,1766922640118,-500.0,0.00016148,2]
[399946605,1766922640130,-250.0,0.00016148,2]
[399946606,1766922640139,-284.76184806,0.00016148,2]
[399946607,1766922640354,-500.0,0.00016148,2]
[399946608,1766922640364,-1000.0,0.00016148,2]
[399946609,1766922640374,-558.6575319,0.00016148,2]
[399946610,1766922640383,-500.0,0.00016148,2]
[399946611,1766922640392,-500.0,0.00016148,2]
[399946612,1766922640402,-320.1146403,0.00016148,2]
[399946613,1766922640411,-201.93286099,0.00016148,2]
[399946614,1766922640421,-200.0,0.00016148,2]
[399946615,1766922640431,-207.4,0.00016148,2]
[399946616,1766922640444,-215.0738,0.00016148,2]
[399946617,1766922640455,-223.0315306,0.00016148,2]
[399946618,1766922640465,-231.28369723,0.00016148,2]
[399946619,1766922640475,-239.84119403,0.00016148,2]
[399946620,1766922640486,-436.16,0.00016148,2]
[399946621,1766922640495,-151.12490865,0.00016171,2]
[399946622,1766922640505,-1221.21,0.00016178,2]
[399946623,1766922640517,-465.28,0.00016178,2]
[399946624,1766922640527,-1218.46,0.00016178,2]
[399946625,1766922640536,-465.28,0.00016178,2]
[399946626,1766922640545,-689.2,0.00016198,2]
[399946627,1766922640555,-7061.21306119,0.00016203,2]
[399946628,1766922640565,-2999.55937036,0.00016252,2]
[399946629,1766922640575,-172.93190675,0.00016317,2]
[399946630,1766922640585,-250.0,0.00016348,2]
[399946631,1766922640594,-2999.55937036,0.0001636,2]
[399946632,1766922640603,-465.28,0.00016378,2]
[399946633,1766922640613,-1221.21,0.00016378,2]
[399946634,1766922640623,-189.47,0.00016379,2]
[399946635,1766922640632,-151.12490865,0.00016414,2]
[399946636,1766922640641,-436.16,0.00016422,2]
[399946637,1766922640651,-166.66,0.00016427,2]
[399946638,1766922640660,-353.94301346,0.00016438,2]
[399946639,1766922640670,-2999.55937036,0.00016468,2]
[399946640,1766922640679,-172.93190675,0.00016511,2]
[399946641,1766922640689,-2999.55937036,0.00016576,2]
[399946642,1766922640699,-501.90830128,0.0001662,2]
[399946643,1766922640709,-151.12490865,0.00016657,2]
[399946644,1766922640718,-433.98777486,0.0001666,2]
[399946645,1766922640728,-2999.55937036,0.00016684,2]
[399946646,1766922640738,-574.12855637,0.00016696,2]
[399946647,1766922640747,-226.50249047,0.00016696,2]
[399946648,1766922640757,-436.16,0.00016696,2]
[399946649,1766922640767,-172.93190675,0.00016706,2]
[399946650,1766922640776,-2999.55937036,0.00016792,2]
[399946651,1766922640786,-357.1,0.00016822,2]
[399946652,1766922640795,-481.45,0.00016849,2]
[399946653,1766922640805,-200.0,0.00016864,2]
[399946654,1766922640814,-168.0,0.00016883,2]
[399946655,1766922640823,-503.0,0.00016897,2]
[399946656,1766922640832,-10000.0,0.000169,2]
[399946657,1766922640842,-7867.98309177,0.000169,3]
[399946658,1766922640851,-172.93190675,0.000169,2]
[399946659,1766922640861,-2999.55937036,0.000169,2]
[399946660,1766922640872,-151.12490865,0.000169,2]
[399946661,1766922640882,-66510.15607146,0.000169,2]
[399946662,1766922640892,-1403.51807199,0.000169,2]
[399946663,1766922640902,-3434.13748852,0.000169,2]
[399946664,1766922640912,-4298.0,0.000169,2]
[399946665,1766922640922,-503.0,0.00016917,2]
[399946666,1766922640933,-503.0,0.00016964,2]
[399946667,1766922640944,-436.16,0.0001697,2]
[399946668,1766922640954,-516.27997317,0.00016973,2]
[399946669,1766922640963,-500.0,0.00016973,2]
[399946670,1766922640974,-500.85707724,0.00016973,2]
[399946671,1766922640984,-500.0,0.00016973,2]
[399946672,1766922640997,-500.0,0.00016973,2]
[399946673,1766922641006,-340.61062855,0.00016973,2]
[399946674,1766922641017,-500.0,0.00016973,2]
[399946675,1766922641027,-500.0,0.00016973,2]
[399946676,1766922641036,-500.0,0.00016973,2]
[399946677,1766922641047,-578.09055034,0.00016973,2]
[399946678,1766922641058,-500.69794678,0.00016973,2]
[399946679,1766922641069,-500.0,0.00016973,2]
[399946680,1766922641078,-500.0,0.00016973,2]
[399946681,1766922641090,-500.0,0.00016973,2]
[399946682,1766922641101,-500.0,0.00016973,2]
[399946683,1766922641111,-203.15298137,0.00016973,2]
[399946684,1766922641122,-500.0,0.00016973,2]
[399946685,1766922641132,-500.0,0.00016973,2]
[399946686,1766922641143,-388.44895572,0.00016973,2]
[399946687,1766922641154,-365.67138507,0.00016973,2]
[399946688,1766922641165,-150.0,0.00016973,2]
[399946689,1766922641178,-505.85873594,0.00016983,2]
[399946690,1766922641187,-151.87453226,0.00016983,2]
[399946691,1766922641196,-51974.67,0.00016986,2]
[399946692,1766922641207,-7441.6077523,0.00016997,2]
[399946693,1766922641216,-279630.8175674,0.00016997,2]
[399946694,1766922641226,-60517.1090744,0.00016997,2]
[399946695,1766922641236,-1000.0,0.00016999,2]
[399946696,1766922641245,-1117.45821686,0.00016999,5]
[399946697,1766922641254,-221.52529679,0.00016999,5]
[399946698,1766922641267,-1967823.83058587,0.00017,2]
[399946781,1766922703039,-151.0,0.00016461,2]
[399946782,1766922703067,-151.0,0.00016461,2]
[399946783,1766922703096,151.0,0.00016434,2]
[399946784,1766922703487,151.0,0.00016434,2]
[399946785,1766922729756,4466.0,0.00015916,2]
[399946786,1766922958168,161.17,7.736e-05,2]
[399946819,1766923836523,-161.17,0.00015472,2]
[399946820,1766923836534,-151.12490865,0.00015521,2]
[399946821,1766923836547,-250.0,0.00015528,2]
[399946822,1766923836556,-200.52781593,0.00015587,2]
[399946823,1766923836565,-287.01311191,0.00015587,2]
[399946824,1766923836575,-331.59731906,0.00015587,2]
[399946825,1766923836585,-387.0,0.00015587,2]
[399946826,1766923836595,-92233.07530627,0.00015588,2]
[399946827,1766923836628,-271.90586894,0.00015588,2]
[399946859,1766923837836,-517025.93173408,0.00015588,2]
[399946881,1766923839951,-154.69967438,0.00015521,2]
[399946882,1766923839960,-390469.08709071,0.00015588,2]
[399946883,1766923839969,-169.14,0.00015621,2]
[399946884,1766923839979,-113309.7,0.00015688,2]
[399946885,1766923839989,-200.0,0.00015688,2]
[399946886,1766923839998,-999.0,0.00015705,3]
[399946887,1766923840008,-3331.35671679,0.00015816,2]
[399946888,1766923840018,-2633.15771642,0.00015816,2]
[399946889,1766923840027,-151.12490865,0.00015866,2]
[399946890,1766923840037,-500.0,0.00015907,2]
[399946891,1766923840046,-151.0,0.00015907,2]
[399946892,1766923840056,-500.0,0.00015907,2]
[399946893,1766923840065,-151.0,0.00015907,2]
[399946894,1766923840075,-151.0,0.00015907,2]
[399946895,1766923840084,-1000.0,0.00015916,2]
[399946896,1766923840094,-3331.35671674,0.00015936,2]
[399946897,1766923840104,-2633.15771641,0.00015936,2]
[399946898,1766923840113,-3331.35671674,0.00016057,2]
[399946899,1766923840122,-2633.15771641,0.00016057,2]
[399946900,1766923840130,-151.0,0.00016082,2]
[399946901,1766923840139,-151.0,0.00016082,2]
[399946902,1766923840149,-151.0,0.00016084,2]
[399946903,1766923840158,-151.0,0.00016084,2]
[399946904,1766923840167,-436.16,0.00016149,2]
[399946905,1766923840176,-1000.0,0.00016149,2]
[399946906,1766923840185,-500.0,0.00016149,2]
[399946907,1766923840195,-1000.0,0.00016149,2]
[399946908,1766923840204,-500.0,0.00016149,2]
[399946909,1766923840213,-500.0,0.00016149,2]
[399946910,1766923840223,-500.0,0.00016149,2]
[399946911,1766923840232,-500.0,0.00016149,2]
[399946912,1766923840241,-153.47713146,0.00016149,2]
[399946913,1766923840250,-500.0,0.00016149,2]
[399946915,1766923840259,-553.64373807,0.00016149,2]
[399946917,1766923840269,-9211.34798985,0.00016149,2]
[399946919,1766923840278,-500.0,0.00016149,2]
[399946921,1766923840287,-558.6575319,0.00016149,2]
[399946923,1766923840296,-250.0,0.00016149,2]
[399946925,1766923840305,-284.76184806,0.00016149,2]
[399946927,1766923840314,-500.0,0.00016149,2]
[399946929,1766923840323,-320.1146403,0.00016149,2]
[399946931,1766923840336,-500.0,0.00016149,2]
[399946933,1766923840345,-500.0,0.00016149,2]
[399946935,1766923840354,-200.0,0.00016149,2]
[399946938,1766923840363,-207.4,0.00016149,2]
[399946939,1766923840374,-500.0,0.00016149,2]
[399946941,1766923840383,-215.0738,0.00016149,2]
[399946943,1766923840393,-223.0315306,0.00016149,2]
[399946946,1766923840403,-231.28369723,0.00016149,2]
[399946947,1766923840413,-239.84119403,0.00016149,2]
[399946950,1766923840423,-248.71531821,0.00016149,2]
[399946952,1766923840433,-201.93286099,0.00016149,2]
[399946953,1766923840443,-257.91778498,0.00016149,2]
[399946955,1766923840453,-405.15229211,0.00016149,2]
[399946957,1766923840463,-3331.35671674,0.00016177,2]
[399946959,1766923840473,-2633.15771641,0.00016177,2]
[399946961,1766923840482,-357.1,0.00016192,2]
[399946963,1766923840491,-1221.21,0.00016192,2]
[399946966,1766923840501,-1221.21,0.00016192,2]
[399946967,1766923840510,-465.28,0.00016192,2]
[399946969,1766923840521,-1218.46,0.00016192,2]
[399946971,1766923840530,-465.28,0.00016192,2]
[399946973,1766923840539,-465.28,0.00016192,2]
[399946975,1766923840548,-465.28,0.00016192,2]
[399946977,1766923840558,-395.03,0.00016192,2]
[399946979,1766923840567,-7061.21306119,0.00016204,2]
[399946981,1766923840576,-151.12490865,0.00016211,2]
[399946983,1766923840584,-3331.35671674,0.00016298,2]
[399946985,1766923840593,-2633.15771641,0.00016298,2]
[399946987,1766923840602,-3331.35671674,0.00016418,2]
[399946989,1766923840611,-2633.15771641,0.00016418,2]
[399946991,1766923840620,-436.16,0.00016423,2]
[399946993,1766923840629,-353.94301346,0.00016438,2]
[399946996,1766923840639,-3331.35671674,0.00016539,2]
[399946998,1766923840649,-2633.15771641,0.00016539,2]
[399947000,1766923840659,-151.12490865,0.00016555,2]
[399947002,1766923840667,-501.90830128,0.00016649,2]
[399947004,1766923840676,-3331.35671674,0.00016659,2]
[399947006,1766923840685,-2633.15771641,0.00016659,2]
[399947008,1766923840694,-433.98777486,0.0001666,2]
[399947010,1766923840702,-214.0,0.00016662,2]
[399947011,1766923840713,-187.0,0.00016692,2]
[399947013,1766923840723,-436.16,0.00016697,2]
[399947015,1766923840732,-574.12855637,0.00016697,2]
[399947017,1766923840741,-226.50249047,0.00016697,2]
[399947019,1766923840751,-150.0,0.00016699,2]
[399947021,1766923840760,-150.0,0.00016699,2]
[399947023,1766923840768,-150.0,0.00016699,2]
[399947025,1766923840777,-177.00452714,0.00016699,2]
[399947027,1766923840786,-176.84626368,0.00016699,2]
[399947029,1766923840795,-186.605,0.00016722,2]
[399947031,1766923840804,-1483.976,0.00016722,2]
[399947033,1766923840813,-150.0,0.00016726,2]
[399947035,1766923840823,-254.80596104,0.00016726,2]
[399947037,1766923840831,-150.0,0.00016726,2]
[399947039,1766923840840,-150.0,0.00016754,2]
[399947041,1766923840849,-150.0,0.00016754,2]
[399947043,1766923840858,-248.68,0.0001677,2]
[399947045,1766923840866,-187.0,0.00016777,2]
[399947047,1766923840876,-3331.35671674,0.0001678,2]
[399947049,1766923840886,-2633.15771641,0.0001678,2]
[399947052,1766923840900,-150.0,0.00016781,2]
[399947054,1766923840913,-150.0,0.00016781,2]
[399947056,1766923840923,-150.0,0.00016809,2]
[399947058,1766923840932,-150.0,0.00016809,2]
[399947060,1766923840942,-150.0,0.00016822,2]
[399947062,1766923840952,-150.0,0.00016822,2]
[399947063,1766923840962,-150.0,0.00016822,2]
[399947064,1766923840971,-150.0,0.00016822,2]
[399947065,1766923840981,-150.0,0.00016822,2]
[399947066,1766923840990,-150.0,0.00016822,2]
[399947067,1766923841002,-150.0,0.00016822,2]
[399947068,1766923841011,-150.0,0.00016822,2]
[399947069,1766923841021,-150.0,0.00016822,2]
[399947070,1766923841031,-150.0,0.00016822,2]
[399947071,1766923841042,-250.0,0.00016836,2]
[399947072,1766923841051,-250.0,0.00016836,2]
[399947073,1766923841061,-488.44,0.00016849,2]
[399947074,1766923841071,-200.0,0.00016864,2]
[399947075,1766923841081,-187.0,0.00016896,2]
[399947076,1766923841091,-7867.98309177,0.000169,3]
[399947077,1766923841101,-10000.0,0.000169,2]
[399947078,1766923841111,-3331.35671674,0.000169,2]
[399947079,1766923841120,-2633.15771641,0.000169,2]
[399947080,1766923841129,-3434.13748852,0.000169,2]
[399947081,1766923841141,-1403.51807199,0.000169,2]
[399947082,1766923841152,-151.12490865,0.000169,2]
[399947083,1766923841163,-4299.0,0.000169,2]
[399947084,1766923841173,-214.0,0.00016933,2]
[399947085,1766923841183,-436.16,0.00016971,2]
[399947086,1766923841194,-578.09055034,0.00016973,2]
[399947087,1766923841204,-500.69794678,0.00016973,2]
[399947088,1766923841215,-500.0,0.00016973,2]
[399947089,1766923841225,-340.61062855,0.00016973,2]
[399947090,1766923841235,-500.0,0.00016973,2]
[399947091,1766923841245,-500.0,0.00016973,2]
[399947092,1766923841255,-500.0,0.00016973,2]
[399947093,1766923841267,-203.15298137,0.00016973,2]
[399947094,1766923841280,-500.0,0.00016973,2]
[399947095,1766923841290,-516.27997317,0.00016973,2]
[399947096,1766923841300,-500.85707724,0.00016973,2]
[399947097,1766923841309,-500.0,0.00016973,2]
[399947098,1766923841320,-500.0,0.00016973,2]
[399947099,1766923841331,-500.0,0.00016973,2]
[399947100,1766923841340,-500.0,0.00016973,2]
[399947101,1766923841350,-500.0,0.00016973,2]
[399947102,1766923841359,-500.0,0.00016973,2]
[399947103,1766923841373,-500.0,0.00016973,2]
[399947104,1766923841382,-150.0,0.00016973,2]
[399947105,1766923841392,-1000.0,0.00016979,2]
[399947106,1766923841401,-505.85873594,0.00016983,2]
[399947107,1766923841410,-151.87453226,0.00016983,2]
[399947108,1766923841420,-273065.3074743,0.00016995,2]
[399947109,1766923841429,-13524.1945966,0.00016995,2]
[399947110,1766923841439,-61549.1792761,0.00016995,2]
[399947111,1766923841449,-221.52529679,0.00016999,5]
[399947112,1766923841459,-1117.45821686,0.00016999,5]
[399947113,1766923841468,-1547978.75085428,0.00017,2]
[399947114,1766923843235,-5367.28933988,0.00017,2]
[399947115,1766923843341,-46404.88763197,0.00017,2]
[399947119,1766923845770,-296.79337137,0.00016192,2]
[399947132,1766924679338,1616.61,0.0003013,120]
[399947171,1766925031876,-150.0,0.00015038,2]
[399947172,1766925031885,-248.97710426,0.00015038,2]
[399947173,1766925031897,-26.02289574,0.00015038,2]
[399947174,1766925031908,-272.07966166,0.00015357,2]
[399947175,1766925031923,-727.92033834,0.00015357,2]
[399947176,1766925031933,-277.44363486,0.000155,2]
[399947177,1766925031958,-411.75636514,0.000155,2]
[399947178,1766925031969,-88.24363486,0.00015578,2]
[399947179,1766925031995,-391.75636514,0.00015578,2]
[399947180,1766925032005,-151.0,0.00015579,2]
[399947181,1766925032016,-151.0,0.00015579,2]
[399947182,1766925032026,-151.0,0.00015579,2]
[399947183,1766925032035,-500.0,0.00015579,2]
[399947184,1766925032045,-500.0,0.00015579,2]
[399947185,1766925032055,-1000.0,0.00015587,2]
[399947186,1766925032065,-500.0,0.00015587,2]
[399947187,1766925032075,-500.0,0.00015587,2]
[399947188,1766925032084,-1514.801,0.00015587,2]
[399947189,1766925032092,-186.605,0.00015587,2]
[399947190,1766925032103,-63.94225086,0.00015618,2]
[399947192,1766925032114,-753.94627524,0.00015618,2]
[399947193,1766925032125,-1337.70986208,0.00015618,2]
[399947194,1766925032135,-1257.02204758,0.00015618,2]
[399947195,1766925032146,-407.96554318,0.00015618,2]
[399947196,1766925032155,-3820.58597885,0.0001576,2]
[399947197,1766925032165,-168.49,0.000158,2]
[399947199,1766925032174,-1000.0,0.00015816,2]
[399947201,1766925032183,-166.66,0.00015888,2]
[399947203,1766925032192,-3820.58597885,0.00015903,2]
[399947205,1766925032202,-775.10288,0.00016,2]
[399947207,1766925032211,-7229.13754306,0.00016,2]
[399947208,1766925032222,-306.0,0.00016,2]
[399947209,1766925037904,-302.69033,0.00016,2]
[399947210,1766925037966,-1072.40294018,0.00016,2]
[399947259,1766925039983,-9634.80969665,0.00016,2]
[399947260,1766925039995,-5200.68821485,0.00016,2]
[399947261,1766925040008,-1269.9727187,0.00016,2]
[399947262,1766925040041,-573.63214,0.00016,2]
[399947263,1766925040106,-5606.6598824,0.00016,2]
[399947264,1766925040125,-1718.44863131,0.00016,2]
[399947265,1766925040138,-311.62999981,0.00016,2]
[399947266,1766925040157,-2445.19113408,0.00016,2]
[399947267,1766925040207,-30864.37590098,0.00016,2]
[399947268,1766925040220,-100420.13143014,0.00016,2]
[399947269,1766925040230,-632.21693724,0.00016,2]
[399947270,1766925040239,-200.0,0.00016029,2]
[399947271,1766925040249,-151.0,0.0001603,2]
[399947272,1766925040258,-151.0,0.0001603,2]
[399947273,1766925040268,-151.0,0.00016037,2]
[399947274,1766925040278,-151.0,0.00016037,2]
[399947275,1766925040289,-151.0,0.00016044,2]
[399947276,1766925040298,-151.0,0.00016044,2]
[399947277,1766925040308,-3820.58597885,0.00016045,2]
[399947278,1766925040318,-500.0,0.00016149,2]
[399947279,1766925040327,-201.93286099,0.00016149,2]
[399947280,1766925040337,-320.1146403,0.00016149,2]
[399947281,1766925040346,-500.0,0.00016149,2]
[399947282,1766925040356,-9211.34798985,0.00016149,2]
[399947283,1766925040365,-553.64373807,0.00016149,2]
[399947284,1766925040375,-558.6575319,0.00016149,2]
[399947285,1766925040384,-153.47713146,0.00016149,2]
[399947286,1766925040396,-500.0,0.00016149,2]
[399947287,1766925040406,-500.0,0.00016149,2]
[399947288,1766925040415,-500.0,0.00016149,2]
[399947289,1766925040425,-500.0,0.00016149,2]
[399947290,1766925040435,-500.0,0.00016149,2]
[399947291,1766925040444,-250.0,0.00016149,2]
[399947292,1766925040453,-284.76184806,0.00016149,2]
[399947293,1766925040462,-500.0,0.00016149,2]
[399947294,1766925040471,-500.0,0.00016149,2]
[399947295,1766925040481,-500.0,0.00016149,2]
[399947296,1766925040493,-1000.0,0.00016149,2]
[399947297,1766925040502,-200.0,0.00016149,2]
[399947298,1766925040512,-1000.0,0.00016149,2]
[399947299,1766925040521,-207.4,0.00016149,2]
[399947300,1766925040530,-215.0738,0.00016149,2]
[399947301,1766925040544,-500.0,0.00016149,2]
[399947302,1766925040554,-223.0315306,0.00016149,2]
[399947303,1766925040564,-231.28369723,0.00016149,2]
[399947304,1766925040575,-239.84119403,0.00016149,2]
[399947305,1766925040584,-248.71531821,0.00016149,2]
[399947306,1766925040593,-257.91778498,0.00016149,2]
[399947307,1766925040603,-405.15229211,0.00016149,2]
[399947308,1766925040613,-150.0,0.00016178,2]
[399947309,1766925040622,-465.28,0.00016178,2]
[399947310,1766925040632,-3820.58597885,0.00016188,2]
[399947311,1766925040641,-150.0,0.00016192,2]
[399947312,1766925040651,-1221.21,0.00016192,2]
[399947313,1766925040660,-1221.21,0.00016192,2]
[399947314,1766925040670,-357.1,0.00016192,2]
[399947315,1766925040680,-465.28,0.00016192,2]
[399947316,1766925040689,-1218.46,0.00016192,2]
[399947317,1766925040699,-465.28,0.00016192,2]
[399947318,1766925040708,-150.0,0.00016192,2]
[399947319,1766925040718,-465.28,0.00016192,2]
[399947320,1766925040728,-465.28,0.00016192,2]
[399947321,1766925040737,-150.0,0.00016192,2]
[399947322,1766925040747,-150.0,0.00016192,2]
[399947323,1766925040756,-7061.21306119,0.00016204,2]
[399947324,1766925040765,-248.68,0.00016281,2]
[399947325,1766925040775,-3820.58597885,0.0001633,2]
[399947326,1766925040784,-353.94301346,0.00016438,2]
[399947327,1766925040794,-7069.93,0.00016438,2]
[399947328,1766925040807,-500.0,0.00016452,2]
[399947329,1766925040818,-500.0,0.00016452,2]
[399947330,1766925040828,-150.0,0.00016452,2]
[399947331,1766925040839,-150.0,0.00016452,2]
[399947332,1766925040849,-150.0,0.00016452,2]
[399947333,1766925040860,-150.0,0.00016452,2]
[399947334,1766925040871,-3820.58597885,0.00016473,2]
[399947335,1766925040881,-500.0,0.00016479,2]
[399947336,1766925040891,-500.0,0.00016479,2]
[399947337,1766925040901,-150.0,0.00016479,2]
[399947338,1766925040910,-177.00452714,0.00016479,2]
[399947339,1766925040919,-150.98746646,0.00016479,2]
[399947340,1766925040932,-176.84626368,0.00016479,2]
[399947341,1766925040941,-501.90830128,0.00016505,2]
[399947342,1766925040950,-500.0,0.00016507,2]
[399947343,1766925040963,-254.80596104,0.00016507,2]
[399947344,1766925040974,-500.0,0.00016507,2]
[399947345,1766925040985,-3820.58597885,0.00016615,2]
[399947346,1766925040995,-433.98777486,0.0001666,2]
[399947347,1766925041006,-243.0,0.00016688,2]
[399947348,1766925041016,-226.50249047,0.00016697,2]
[399947349,1766925041027,-574.12855637,0.00016697,2]
[399947350,1766925041036,-3573.17692081,0.00016752,2]
[399947351,1766925041046,-3820.58597885,0.00016758,2]
[399947352,1766925041057,-195.0,0.00016791,2]
[399947353,1766925041067,-600.0,0.00016791,2]
[399947354,1766925041077,-253.99539142,0.00016791,2]
[399947355,1766925041089,-200.0,0.00016864,2]
[399947356,1766925041099,-168.0,0.0001687,2]
[399947357,1766925041110,-165.2964325,0.00016899,2]
[399947358,1766925041120,-165.29643243,0.00016899,2]
[399947359,1766925041131,-165.29643243,0.00016899,2]
[399947360,1766925041140,-165.29643243,0.00016899,2]
[399947361,1766925041150,-165.29643243,0.000169,2]
[399947362,1766925041160,-165.29643243,0.000169,2]
[399947363,1766925041171,-165.29643243,0.000169,2]
[399947364,1766925041180,-7867.98309177,0.000169,3]
[399947365,1766925041189,-10000.0,0.000169,2]